{"text_format":"3","workbook":"xlsx","n_sheets":4,"sheets":["Список покупок","Распределение бюджета","Список дел","Доступ к списку"],"not_rendered":{"charts":2,"images":2,"defined_names":12},"read":"whole","date_system":"1900"}

{"sheet":"Список покупок","index":0,"n_rows":25,"n_cols":8,"rows_kept":25,"merged":[[2,1,2,7],[3,1,3,2],[4,4,6,7]]}
[null,"Снова в школу","Планировщик"]
[]
[null,"Следите за процессом покупок, чтобы не превысить суммы, указанные на странице распределения бюджета."]
[null,"Сводный бюджет",null,null,{"$f":"\"Выполнение плана покупок (\"&COUNTIFS(Контрольный_список[Куплено], \">0\")&\" из \"&COUNTIFS(Контрольный_список[Купить], \">0\")&\")\"","v":"Выполнение плана покупок (1 из 6)"}]
[null,"Бюджет",{"v":1500,"d":"1,500.00 ₽"},null,{"$f":"IFERROR(COUNTIFS(Контрольный_список[Купить],\">0\",Контрольный_список[Куплено],\">0\")/ВсегоВещейКупить,0)","v":{"v":0.16666666666666666,"d":"17%"}}]
[null,"Итого по списку покупок",{"$f":"IFERROR(SUM(ИтогоПоКонтрольномуСписку), \"\")","v":{"v":365,"d":"365.00 ₽"}}]
[null,"Остаток наличных денег",{"$f":"IFERROR(C5-C6, \"\")","v":{"v":1135,"d":"1,135.00 ₽"}}]
[null,"Список покупок"]
[null,"Наименование","Категория","Кол-во","Купить","Стоимость","Куплено","Общая стоимость"]
[null,"Математика","Учебники",1,1,{"v":55,"d":"55.00 ₽"},1,{"$f":"IFERROR(Контрольный_список[Кол-во]*Контрольный_список[Стоимость], \"\")","v":{"v":55,"d":"55.00 ₽"}}]
[null,"Русский язык","Учебники",1,1,null,null,{"$f":"IFERROR(Контрольный_список[Кол-во]*Контрольный_список[Стоимость], \"\")","v":0}]
[null,"Рюкзак","Учебные принадлежности",1,null,{"v":30,"d":"30.00 ₽"},null,{"$f":"IFERROR(Контрольный_список[Кол-во]*Контрольный_список[Стоимость], \"\")","v":{"v":30,"d":"30.00 ₽"}}]
[null,"Калькулятор","Учебные принадлежности",1,{"$nulls":3},{"$f":"IFERROR(Контрольный_список[Кол-во]*Контрольный_список[Стоимость], \"\")","v":0}]
[null,"Маркеры","Учебные принадлежности",3,{"$nulls":3},{"$f":"IFERROR(Контрольный_список[Кол-во]*Контрольный_список[Стоимость], \"\")","v":0}]
[null,"Школьная форма","Одежда",2,1,{"v":100,"d":"100.00 ₽"},null,{"$f":"IFERROR(Контрольный_список[Кол-во]*Контрольный_список[Стоимость], \"\")","v":{"v":200,"d":"200.00 ₽"}}]
[null,"Рубашки с пуговицами","Одежда",4,{"$nulls":3},{"$f":"IFERROR(Контрольный_список[Кол-во]*Контрольный_список[Стоимость], \"\")","v":0}]
[null,"Футболки","Одежда",5,{"$nulls":3},{"$f":"IFERROR(Контрольный_список[Кол-во]*Контрольный_список[Стоимость], \"\")","v":0}]
[null,"Шорты","Одежда",2,{"$nulls":3},{"$f":"IFERROR(Контрольный_список[Кол-во]*Контрольный_список[Стоимость], \"\")","v":0}]
[null,"Полукеды","Одежда",2,1,null,null,{"$f":"IFERROR(Контрольный_список[Кол-во]*Контрольный_список[Стоимость], \"\")","v":0}]
[null,"Носки","Одежда",10,{"$nulls":3},{"$f":"IFERROR(Контрольный_список[Кол-во]*Контрольный_список[Стоимость], \"\")","v":0}]
[null,"Демисезонная куртка","Одежда",1,1,{"v":80,"d":"80.00 ₽"},null,{"$f":"IFERROR(Контрольный_список[Кол-во]*Контрольный_список[Стоимость], \"\")","v":{"v":80,"d":"80.00 ₽"}}]
[null,"Джемперы","Одежда",1,{"$nulls":3},{"$f":"IFERROR(Контрольный_список[Кол-во]*Контрольный_список[Стоимость], \"\")","v":0}]
[null,"Толстовки","Одежда",1,{"$nulls":3},{"$f":"IFERROR(Контрольный_список[Кол-во]*Контрольный_список[Стоимость], \"\")","v":0}]
[null,"Нижнее белье","Одежда",10,{"$nulls":3},{"$f":"IFERROR(Контрольный_список[Кол-во]*Контрольный_список[Стоимость], \"\")","v":0}]
[null,"Зимняя куртка","Одежда",1,1,null,null,{"$f":"IFERROR(Контрольный_список[Кол-во]*Контрольный_список[Стоимость], \"\")","v":0}]

{"sheet":"Распределение бюджета","index":1,"n_rows":6,"n_cols":3,"rows_kept":6}
[null,"Распределение бюджета"]
[null,"Добавьте категории и суммы бюджета, которые будут отслеживаться в списке покупок."]
[null,"Категория","Общая стоимость"]
[null,"Одежда",{"$f":"IFERROR(SUMIFS(Контрольный_список[Общая стоимость],Контрольный_список[Категория],Категория[Категория]), \"\")","v":{"v":280,"d":"280.00 ₽"}}]
[null,"Учебные принадлежности",{"$f":"IFERROR(SUMIFS(Контрольный_список[Общая стоимость],Контрольный_список[Категория],Категория[Категория]), \"\")","v":{"v":30,"d":"30.00 ₽"}}]
[null,"Учебники",{"$f":"IFERROR(SUMIFS(Контрольный_список[Общая стоимость],Контрольный_список[Категория],Категория[Категория]), \"\")","v":{"v":55,"d":"55.00 ₽"}}]

{"sheet":"Список дел","index":2,"n_rows":22,"n_cols":3,"rows_kept":22}
[null,"Список дел"]
[null,"Следите за выполнением задач, которые необходимо завершить до начала учебного года."]
[null,"Готово","Задача"]
[null,"x","Заполнить все регистрационные формы"]
[null,null,"Назначить день медицинского осмотра и обследования школьника, если требуется"]
[null,null,"Проверить наличие всех необходимых прививок"]
[null,null,"Получить у терапевта инструкции по применению всех необходимых лекарств"]
[null,null,"Ознакомиться с дресс-кодом школы"]
[null,null,"Получить список учебных принадлежностей"]
[null,null,"Посетить учителя"]
[null,null,"Выяснить, какой способ связи предпочитает учитель (телефон, электронная почта, записка)"]
[null,null,"Устроить ребенку экскурсию по школе"]
[null,null,"Помочь ребенку заполнить домашний адрес и телефон и рабочие телефоны родителей"]
[null,null,"Продумать, как ребенок будет добираться до школы. Выбрать безопасное место встречи и отработать маршрут"]
[null,null,"Если ребенок будет ходить в школу пешком, несколько раз провести его от дома до школы и обратно"]
[null,null,"Если ребенка будут возить на машине вместе с другими детьми, познакомить его с теми, кто будет за рулем."]
[null,null,"Если ребенок будет ездить на автобусе, определить время в пути и изучить с ним автобусные остановки"]
[null,null,"Договориться о группе продленного дня или внеклассных занятиях для ребенка"]
[null,null,"Составить меню завтраков, а также обедов, которые ребенок будет брать в школу. Прикинуть, чем он может перекусить на переменах и после уроков"]
[null,null,"Определить, где и когда ребенок будет делать домашнее задание"]
[null,null,"Ввести процедуру отхода ко сну не менее, чем за две недели до начала школьных занятий"]
[null,null,"Подготовить календарь всех школьных событий и мероприятий"]

{"sheet":"Доступ к списку","index":3,"n_rows":4,"n_cols":5,"rows_kept":4}
[null,"Доступ к списку",null,null,"Поделитесь этим списком с родными и близкими, чтобы они помогли вам выполнить его пункты. Выберите кнопку \"Общий доступ\" в правом верхнем углу экрана или нажмите клавиши ALT и \"ЭУ\". Сохраните файл в OneDrive и отправьте ссылку своим друзьям."]
[null,"Имя","Эл. почта","Есть доступ?"]
[null,"Имя 1","address_1@email.com","Да"]
[null,"Имя 2","address_2@email.com","Нет"]